bitfinex/quotes_ETHUSD_20250428
["timestamp","ask_amount","ask_price","bid_price","bid_amount"]
[1745800444835,6.06,1786.4,1786.1,3.0]
[1745800445346,6.06,1786.4,1786.0,2.12157]
[1745800445748,6.06,1786.4,1786.0,1.6287]
[1745800445945,6.06,1786.4,1785.6,6.107]
[1745800446134,6.06,1786.5,1785.6,6.107]
[1745800446371,3.1506612,1786.4,1785.6,6.107]
[1745800446864,6.06,1786.5,1785.6,6.107]
[1745800447068,6.06,1786.5,1785.7,0.6107]
[1745800447444,3.1506612,1786.4,1785.6,6.107]
[1745800448369,3.1506612,1786.2,1785.6,6.107]
[1745800449476,6.06,1786.3,1785.6,6.107]
[1745800450466,3.1506612,1786.0,1785.5,3.71583483]
[1745800450772,6.06,1785.9,1785.5,3.71583483]
[1745800452174,6.06,1785.9,1785.4,1.5638]
[1745800453049,6.06,1785.9,1785.4,4.5638]
[1745800453267,6.06,1785.9,1785.6,3.0]
[1745800453450,6.06,1785.9,1785.5,3.0]
[1745800453656,6.06,1785.9,1785.6,0.3]
[1745800454073,3.1506612,1786.3,1785.4,4.5638]
[1745800454254,6.05672835,1785.8,1785.3,3.71583483]
[1745800454446,3.1506612,1785.9,1785.4,3.71583483]
[1745800454647,6.05672835,1785.8,1785.4,3.71583483]
[1745800454979,6.05672835,1785.7,1785.4,3.71583483]
[1745800456195,3.1506612,1785.5,1784.9,10.87249597]
[1745800456365,2.34089352,1785.4,1784.8,3.7586472]
[1745800456575,5.34089352,1785.4,1784.8,3.7586472]
[1745800458191,5.49155472,1785.3,1784.8,3.7586472]
[1745800458394,3.1506612,1784.9,1784.8,3.7586472]
[1745800458593,8.49155472,1784.9,1784.8,3.7586472]
[1745800458760,5.34089352,1784.9,1784.8,3.7586472]
[1745800459481,7.58892052,1784.9,1784.1,6.093]
[1745800459695,5.34089352,1784.9,1784.1,6.093]
[1745800460292,3.1506612,1784.7,1784.0,1.6235]
[1745800460594,3.1506612,1784.7,1783.8,6.40299597]
[1745800461772,3.1506612,1784.7,1783.8,1.6235]
[1745800462270,3.1506612,1784.5,1783.6,7.6857]
[1745800462480,8.43489352,1784.4,1783.6,8.45427]
[1745800462995,8.43489352,1784.4,1783.7,3.0]
[1745800463364,2.34089352,1784.4,1783.7,3.0]
[1745800463564,2.34089352,1784.4,1783.7,8.60621419]
[1745800464189,2.34089352,1784.4,1783.7,3.0]
[1745800467084,2.34089352,1784.4,1783.9,4.5136]
[1745800468182,2.34089352,1784.4,1783.9,1.5136]
[1745800469479,2.34089352,1784.4,1783.9,4.5136]
[1745800470285,2.34089352,1784.4,1783.9,10.11928596]
[1745800470478,2.34089352,1784.7,1784.3,4.6057]
[1745800470677,2.34089352,1784.7,1784.3,1.6057]
[1745800471073,2.34089352,1784.7,1784.1,3.0]
[1745800471271,2.34089352,1784.7,1784.1,10.17393848]
[1745800471483,2.34089352,1784.7,1784.3,3.0]
[1745800472907,2.34089352,1784.7,1784.1,4.569]
[1745800473105,2.34089352,1784.7,1784.2,0.4569]
[1745800473400,2.34089352,1784.7,1784.1,4.569]
[1745800474641,2.34089352,1784.7,1784.1,3.0]
[1745800475906,2.34089352,1784.7,1784.1,8.60503758]
[1745800476204,2.34089352,1784.7,1784.3,1.6055]
[1745800476376,2.34089352,1784.7,1784.3,10.20992011]
[1745800476572,2.34089352,1784.7,1784.3,5.62649201]
[1745800476795,2.34089352,1784.7,1784.3,11.23080792]
[1745800476996,2.34089352,1785.3,1784.4,5.60412463]
[1745800477183,2.34089352,1785.2,1784.5,8.60369256]
[1745800477389,2.34089352,1785.2,1784.7,4.6055]
[1745800477585,2.34089352,1785.2,1784.7,7.20851091]
[1745800477791,2.34089352,1785.2,1784.7,1.6055]
[1745800477997,2.34089352,1785.2,1784.8,5.60284363]
[1745800479187,2.34089352,1785.2,1784.9,1.6295]
[1745800479407,2.34089352,1785.2,1784.9,7.69499993]
[1745800479610,2.34089352,1785.7,1785.0,8.60222556]
[1745800479806,2.34089352,1785.7,1785.0,3.4145511]
[1745800479987,2.34089352,1785.7,1785.0,4.5255062]
[1745800480398,2.34089352,1785.7,1785.0,10.12774006]
[1745800480619,3.1506612,1785.6,1784.9,1.6295]
[1745800480799,2.34089352,1785.5,1784.6,4.6295]
[1745800481001,2.34089352,1785.4,1784.4,1.6295]
[1745800481313,2.34089352,1785.4,1784.6,3.0]
[1745800481903,3.1506612,1785.2,1784.5,6.097]
[1745800482206,8.42389352,1785.1,1784.1,7.6642]
[1745800482396,3.1506612,1784.8,1784.1,6.083]
[1745800482581,2.34089352,1784.7,1784.1,6.083]
[1745800485286,2.34089352,1784.7,1784.2,3.0]
[1745800486521,2.34089352,1784.7,1784.1,6.083]
[1745800488726,2.34089352,1784.7,1784.1,6.9913]
[1745800489589,2.34089352,1784.7,1784.1,6.083]
[1745800489797,2.34089352,1784.6,1784.1,6.083]
[1745800490223,2.34089352,1784.6,1783.7,9.083]
[1745800490520,2.34089352,1784.6,1783.7,15.11318962]
[1745800490889,2.34089352,1784.6,1783.8,1.51131896]
[1745800491110,2.34089352,1784.6,1783.7,6.50690079]
[1745800491320,2.34089352,1784.6,1783.8,3.0]
[1745800494536,2.34089352,1784.5,1783.8,3.0]
[1745800495502,11.57555472,1784.4,1783.2,7.5928]
[1745800495702,2.34089352,1784.3,1783.3,0.75928]
[1745800495898,2.34089352,1784.3,1783.3,9.36674906]
[1745800496218,2.34089352,1784.3,1783.5,3.0]
[1745800496742,2.34089352,1784.3,1783.6,1.5524]
[1745800496906,2.34089352,1784.2,1783.6,1.5524]
[1745800497108,2.34089352,1784.2,1783.6,2.00764]
[1745800498240,2.34089352,1784.2,1783.3,1.26284634]
[1745800498548,3.1506612,1784.0,1783.0,1.5524]
[1745800498720,8.42589352,1783.9,1783.0,1.5524]
[1745800499054,8.42589352,1783.9,1783.0,4.5524]
[1745800499203,8.42589352,1783.9,1783.1,0.45524]
[1745800501005,8.42589352,1783.9,1783.2,3.0]
[1745800501207,8.42589352,1783.9,1783.1,0.45524]
[1745800502547,11.57655472,1783.9,1782.9,6.085]
[1745800502741,3.1506612,1783.7,1782.9,6.085]
[1745800502911,3.0,1783.6,1782.9,6.085]
[1745800503106,2.34089352,1783.5,1782.9,6.085]
[1745800503322,2.34089352,1783.5,1783.0,9.2169342]
[1745800503652,2.34089352,1783.5,1783.0,3.6085]
[1745800504737,2.34089352,1783.5,1783.0,3.0]
[1745800504941,2.34089352,1783.5,1782.9,6.085]
[1745800505308,2.34089352,1783.5,1782.8,3.0]
[1745800505509,2.34089352,1783.5,1782.5,9.087]
[1745800505709,2.34089352,1783.4,1782.5,14.69705352]
[1745800505910,2.34089352,1783.4,1782.6,1.46970535]
[1745800507749,2.34089352,1783.4,1782.6,1.89801593]
[1745800508050,2.34089352,1783.4,1783.0,8.6084052]
[1745800508840,2.34089352,1783.4,1782.9,8.6086591]
[1745800509434,2.34089352,1783.4,1783.1,3.0]
[1745800509635,2.34089352,1783.4,1783.3,8.60758145]
[1745800509839,2.34089352,1783.4,1783.3,10.27088145]
[1745800510713,2.34089352,1784.2,1783.4,3.0]
[1745800511027,5.49155472,1784.1,1783.1,3.41960218]
[1745800511412,5.49155472,1784.1,1783.1,9.02777147]
[1745800511609,5.49155472,1784.1,1782.7,5.60943763]
[1745800511610,3.1506612,1783.2,1782.3,4.77949597]
[1745800511808,3.1506612,1782.7,1782.3,4.77949597]
[1745800512040,3.1506612,1782.4,1782.1,5.89263878]
[1745800512332,0.2703,1782.3,1782.1,4.787769]
[1745800512720,0.2703,1782.3,1782.2,3.36021639]
[1745800513033,0.2703,1782.3,1782.2,3.53212001]
[1745800513234,0.2703,1782.3,1782.2,0.81479854]
[1745800513534,0.2703,1782.3,1782.1,4.787769]
[1745800514011,0.2703,1782.3,1782.2,3.0]
[1745800514413,0.2703,1782.3,1782.2,8.61104253]
[1745800514654,0.2703,1782.3,1782.1,10.39892854]
[1745800514655,0.2703,1782.3,1782.1,8.61119939]
[1745800514810,0.2703,1782.3,1782.2,8.61104253]
[1745800515022,0.2703,1782.3,1782.2,10.37964678]
[1745800515519,0.2703,1782.3,1782.2,4.76860425]
[1745800515850,0.2703,1782.3,1781.8,5.61228463]
[1745800515851,0.55,1782.2,1780.9,0.26628421]
[1745800516050,3.06076821,1781.2,1780.5,6.87476281]
[1745800516561,9.13576821,1781.5,1780.5,7.59151323]
[1745800516922,9.13576821,1781.5,1780.5,13.20791282]
[1745800517439,9.13576821,1781.5,1780.6,3.0]
[1745800517642,9.13776821,1781.5,1780.6,3.0]
[1745800517819,11.47866173,1781.8,1780.7,5.61576907]
[1745800518026,11.47866173,1781.8,1780.8,0.56157691]
[1745800518359,11.47866173,1781.8,1780.6,9.077]
[1745800518527,11.47866173,1781.8,1780.6,14.69305261]
[1745800518735,11.46905629,1781.8,1780.6,14.69305261]
[1745800519132,11.46905629,1781.8,1780.8,3.0]
[1745800519321,9.13776821,1782.1,1781.1,5.61428028]
[1745800519520,6.077,1782.1,1781.2,0.56142803]
[1745800519732,6.077,1782.1,1781.4,8.61335813]
[1745800519931,3.06076821,1782.4,1781.4,8.61335813]
[1745800520346,3.06076821,1782.4,1781.3,1.5758]
[1745800521285,3.06076821,1782.4,1781.4,3.0]
[1745800521570,6.078,1782.5,1781.6,8.61278522]
[1745800521767,3.06076821,1782.7,1781.8,3.0]
[1745800521949,3.06076821,1782.7,1781.8,8.61228398]
[1745800522153,3.06076821,1782.7,1781.6,5.61283814]
[1745800522154,3.06076821,1782.7,1781.9,0.8612284]
[1745800522339,3.06076821,1782.7,1781.6,5.61283814]
[1745800522340,3.06076821,1782.7,1781.6,8.61276763]
[1745800522663,3.06076821,1782.7,1781.7,5.61259116]
[1745800522841,3.06076821,1782.7,1781.6,8.61283627]
[1745800523034,3.06076821,1782.7,1781.6,3.0]
[1745800523235,0.30682048,1782.6,1781.6,8.61267063]
[1745800523438,3.06076821,1782.0,1780.0,1.5573]
[1745800523636,2.05,1782.5,1779.8,5.61860883]
[1745800523637,3.0,1781.8,1779.8,5.61860883]
[1745800523839,3.06076821,1781.5,1780.3,5.61681248]
[1745800524051,3.06076821,1781.5,1780.4,3.56168125]
[1745800524227,9.13876821,1781.5,1780.4,3.56168125]
[1745800524560,6.078,1781.4,1780.4,9.17836437]
[1745800524779,3.06076821,1781.5,1780.5,5.6162465]
[1745800525261,3.06076821,1781.5,1780.4,9.17820794]
[1745800525461,3.06076821,1781.5,1780.5,0.91782079]
[1745800525762,9.13876821,1781.5,1780.5,0.91782079]
[1745800526062,9.13876821,1781.5,1780.5,6.53420127]
[1745800526449,9.13876821,1781.5,1780.5,0.91782079]
[1745800526957,9.13876821,1781.5,1780.4,3.56168125]
[1745800527183,9.13876821,1781.5,1780.4,9.17838119]
[1745800527766,9.13876821,1781.5,1780.4,3.0]
[1745800527977,0.2,1780.1,1778.3,6.87476281]
[1745800528155,3.06076821,1779.4,1778.3,6.87476281]
[1745800528338,9.13976821,1779.7,1778.4,0.68747628]
[1745800528539,3.06076821,1780.2,1778.6,5.62210345]
[1745800528739,3.06076821,1780.2,1778.7,6.079]
[1745800528740,3.0,1780.1,1778.7,6.079]
[1745800528940,3.0,1780.1,1778.8,1.54903113]
[1745800529130,3.06076821,1779.9,1778.7,6.079]
[1745800529330,3.06076821,1779.9,1778.6,5.62230138]
[1745800529533,3.0,1779.9,1778.4,0.68747628]
[1745800529745,3.0,1779.9,1778.6,5.62210497]
[1745800529954,3.0,1779.9,1778.7,0.5622105]
[1745800530171,6.079,1780.2,1778.8,3.0]
[1745800530470,3.0,1780.1,1779.0,3.0]
[1745800530980,3.0,1780.1,1779.0,5.62109662]
[1745800531186,3.0,1780.1,1779.0,3.0]
[1745800531479,3.0,1780.1,1779.0,3.9082]
[1745800531678,3.0,1780.1,1779.1,0.23974859]
[1745800532872,2.33128808,1780.0,1779.1,0.23974859]
[1745800534184,5.39205629,1780.0,1779.1,0.23974859]
[1745800534882,2.33128808,1780.0,1779.2,5.62047468]
[1745800535080,5.33128808,1780.0,1779.3,0.56204747]
[1745800535305,5.33128808,1780.0,1779.3,0.00213352]
[1745800535650,5.33128808,1780.0,1779.3,5.61991746]
[1745800535651,2.33128808,1780.0,1779.3,5.61991746]
[1745800535871,2.33128808,1780.0,1779.4,0.25274642]
[1745800536252,2.33128808,1780.5,1779.5,5.61932603]
[1745800536459,2.33128808,1780.5,1779.5,6.81503327]
[1745800536680,2.33128808,1780.5,1779.5,1.19570724]
[1745800536981,5.33128808,1780.5,1779.5,6.81519657]
[1745800537283,2.33128808,1780.4,1779.4,0.25274642]
[1745800537469,2.33128808,1780.4,1779.4,3.25274642]
[1745800537778,2.33128808,1780.4,1779.4,0.25274642]
[1745800538280,2.33128808,1780.3,1779.4,3.25274642]
[1745800538485,2.33128808,1780.3,1779.4,1.14003623]
[1745800538786,2.33128808,1780.3,1779.4,6.75967533]
[1745800539549,2.33128808,1780.3,1779.4,6.75963718]
[1745800539756,2.33128808,1780.3,1779.5,5.61926959]
[1745800539947,2.33128808,1780.3,1779.6,0.25274642]
[1745800540464,2.33128808,1780.3,1779.6,6.19719785]
[1745800540662,2.33128808,1780.3,1779.6,12.28219785]
[1745800540885,2.33128808,1780.3,1779.8,5.61853474]
[1745800541084,2.33128808,1780.3,1779.9,5.6180212]
[1745800541284,2.33128808,1780.3,1779.8,3.0]
[1745800541483,8.46428808,1781.0,1780.1,5.61746572]
[1745800541688,8.46428808,1781.0,1780.1,11.75046572]
[1745800542152,0.30568675,1780.9,1780.2,5.61732819]
[1745800542352,0.30568675,1780.9,1780.2,3.0]
[1745800542556,0.30568675,1780.9,1780.3,0.3]
[1745800542773,2.33128808,1781.0,1780.3,5.91698636]
[1745800543487,2.33128808,1781.0,1780.3,0.3]
[1745800543695,2.33128808,1781.0,1780.4,0.00143905]
[1745800544255,2.33128808,1781.0,1780.4,5.61800719]
[1745800544483,2.33128808,1781.0,1780.4,4.15493854]
[1745800544692,2.33128808,1781.0,1780.5,5.61626831]
[1745800544869,2.33128808,1781.0,1780.4,1.15493854]
[1745800545070,2.33128808,1781.0,1780.6,0.00131287]
[1745800545267,2.33128808,1781.0,1780.5,3.00137596]
[1745800545475,2.33128808,1781.0,1780.7,0.00124979]
[1745800545657,2.33128808,1781.0,1780.5,3.0]
[1745800545851,2.33128808,1781.0,1780.8,0.00118672]
[1745800546062,2.33128808,1781.0,1780.5,9.59341919]
[1745800546262,2.33128808,1781.0,1780.9,0.00112366]
[1745800546475,2.33128808,1781.0,1780.3,5.91700375]
[1745800546677,2.33128808,1781.0,1780.9,0.00112366]
[1745800547198,2.33128808,1781.0,1780.3,5.91700375]
[1745800547373,2.33128808,1781.0,1780.4,0.00143905]
[1745800547698,2.33128808,1781.0,1780.5,5.61627295]
[1745800548069,2.33128808,1781.0,1780.6,0.00131287]
[1745800548591,2.33128808,1781.0,1780.7,0.00124979]
[1745800548772,2.33128808,1781.0,1780.3,0.3]
[1745800548962,2.33128808,1781.0,1780.6,5.61593884]
[1745800549163,2.33128808,1781.0,1780.7,0.00124979]
[1745800549566,2.33128808,1781.0,1780.7,8.61689751]
[1745800549767,2.33128808,1781.0,1780.9,5.61513841]
[1745800550168,2.33128808,1781.0,1780.9,0.00112366]
[1745800550388,2.33128808,1781.0,1780.8,5.61522299]
[1745800550584,2.33128808,1781.0,1780.9,0.00112366]
[1745800550791,2.33128808,1781.0,1780.8,7.03830651]
[1745800551100,2.33128808,1781.0,1780.9,8.61626207]
[1745800551306,2.33128808,1781.7,1781.0,3.0]
[1745800551471,2.33128808,1781.7,1781.4,5.61341876]
[1745800551805,2.33128808,1781.7,1781.4,6.73615219]
[1745800553168,2.33128808,1781.7,1781.3,3.0]
[1745800553370,2.33128808,1781.7,1781.4,0.24973489]
[1745800553575,2.33128808,1781.7,1781.4,0.24892644]
[1745800553771,2.33128808,1781.7,1781.2,6.13]
[1745800553976,2.33128808,1781.7,1781.3,0.23620276]
[1745800554221,2.33128808,1781.6,1781.3,0.23620276]
[1745800554390,2.33128808,1781.6,1781.4,0.00080845]
[1745800555603,2.33128808,1781.6,1781.5,0.23645924]
[1745800555803,2.33128808,1781.6,1781.2,6.13]
[1745800555804,2.33128808,1781.6,1781.2,11.74414294]
[1745800556022,2.33128808,1781.6,1781.4,5.61344036]
[1745800556328,2.33128808,1781.6,1781.5,0.23645924]
[1745800559112,2.33128808,1781.6,1781.5,5.8497065]
[1745800559282,2.33128808,1781.6,1781.5,8.8497065]
[1745800561000,6.131,1782.5,1781.8,5.61229106]
[1745800561001,2.33128808,1782.4,1781.8,5.61229106]
[1745800561192,2.33128808,1782.3,1781.9,5.84816705]
[1745800561394,2.33128808,1782.3,1781.9,0.23618955]
[1745800563447,2.33128808,1782.3,1781.7,6.128]
[1745800563942,0.30738076,1782.2,1782.0,0.23625254]
[1745800564235,0.30738076,1782.2,1782.1,0.23631551]
[1745800564392,2.75281576,1782.2,1782.1,0.23631551]
[1745800564793,3.0,1782.1,1781.2,5.6140271]
[1745800564951,2.33128808,1782.0,1781.4,5.61349417]
[1745800565099,2.33128808,1782.0,1781.3,0.21460564]
[1745800565299,2.33128808,1782.0,1781.5,5.61309423]
[1745800565532,2.33128808,1782.0,1781.5,3.0]
[1745800565705,2.33128808,1782.0,1781.4,3.0]
[1745800565906,2.33128808,1782.0,1781.6,0.21450904]
[1745800566147,2.33128808,1781.9,1781.4,3.0]
[1745800566330,2.33128808,1781.9,1781.7,0.21457205]
[1745800566517,2.33128808,1781.9,1781.4,3.0]
[1745800566838,2.33128808,1781.9,1781.4,8.61347063]
[1745800567016,2.33128808,1781.9,1781.5,0.21444603]
[1745800568540,2.33128808,1781.9,1781.3,3.0]
[1745800568742,2.33128808,1781.9,1781.6,0.21450904]
[1745800568977,2.33128808,1781.9,1781.3,3.0]
[1745800569155,2.33128808,1781.9,1781.7,0.21457205]
[1745800569365,2.33128808,1781.9,1781.3,8.61384205]
[1745800569366,2.33128808,1781.9,1781.4,3.0]
[1745800569668,2.33128808,1781.9,1781.5,0.21444603]
[1745800569830,2.33128808,1781.9,1781.6,3.0]
[1745800570036,2.33128808,1781.9,1781.7,0.21457205]
[1745800572670,2.33128808,1781.9,1781.7,5.8271835]
[1745800572872,2.33128808,1781.9,1781.7,0.21457205]
[1745800574168,2.33128808,1781.9,1781.8,8.61230216]
[1745800574469,2.33128808,1781.9,1781.8,3.21463505]
[1745800574837,2.33128808,1781.9,1781.8,8.82693721]
[1745800575037,2.33128808,1781.9,1781.8,3.21463505]
[1745800575760,2.33128808,1781.9,1781.8,0.21463505]
[1745800576339,2.33128808,1781.9,1781.2,8.61417856]
[1745800576582,2.33128808,1781.9,1781.2,3.0]
[1745800576893,0.31019579,1781.8,1781.3,0.21519146]
[1745800577184,2.33128808,1781.7,1781.3,0.21519146]
[1745800577479,0.31019579,1781.6,1781.3,0.21519146]
[1745800578587,0.31019579,1781.5,1781.3,0.21519146]
[1745800578743,2.64148387,1781.5,1781.3,0.21519146]
[1745800579354,0.31019579,1781.4,1781.3,0.21519146]
[1745800582443,2.64148387,1781.4,1781.3,0.21519146]
[1745800587757,8.75942787,1781.4,1781.3,0.21519146]
[1745800587957,6.45390387,1781.4,1780.4,7.24368374]
[1745800588161,2.64148387,1781.3,1780.5,3.0]
[1745800588397,2.64148387,1781.3,1780.5,3.22170254]
[1745800588701,2.64148387,1781.3,1780.5,0.22170254]
[1745800588851,5.78498328,1781.3,1780.5,0.22170254]
[1745800589051,0.31019579,1781.2,1780.5,0.22170254]
[1745800590497,0.31019579,1781.1,1780.5,0.22170254]
[1745800590995,2.33128808,1781.0,1780.5,0.22170254]
[1745800591209,2.64148387,1780.9,1780.5,0.22170254]
[1745800592187,0.31019579,1780.8,1780.5,0.22170254]
[1745800592685,2.33128808,1780.9,1780.5,0.22170254]
[1745800594317,2.33128808,1780.8,1780.5,0.22170254]
[1745800594481,3.14349941,1780.7,1780.5,0.22032658]
[1745800594876,3.298834,1780.6,1779.7,4.5339]
[1745800595017,2.33128808,1780.5,1779.7,10.15258527]
[1745800595202,2.33128808,1780.5,1779.8,3.0]
[1745800597113,2.33128808,1780.5,1779.7,4.5339]
[1745800598118,2.33128808,1780.5,1779.8,0.00181774]
[1745800598623,2.33128808,1780.5,1779.9,0.23324219]
[1745800599727,8.41028808,1780.5,1779.9,0.23324219]
[1745800600090,2.33128808,1780.4,1779.9,0.23324219]
[1745800601230,2.33128808,1780.3,1779.9,0.23324219]
[1745800601714,2.33128808,1780.3,1780.0,0.00169148]
[1745800603230,2.33128808,1780.2,1780.0,0.00169148]
[1745800603432,2.33128808,1780.1,1780.0,0.00169148]
[1745800613762,2.33128808,1780.1,1780.0,0.24066995]
[1745800614458,2.28128808,1780.1,1780.0,0.24066995]
[1745800616357,2.59105266,1780.1,1780.0,0.24066995]
[1745800618935,2.59105266,1780.1,1780.0,3.24066995]
[1745800619139,2.59105266,1780.1,1780.0,0.71973695]
[1745800619440,2.28128808,1780.1,1780.0,0.71973695]
[1745800620326,2.28128808,1780.1,1780.0,0.24066995]
[1745800623162,2.59188805,1780.1,1780.0,0.24066995]
[1745800624970,16.856,1781.0,1780.1,8.61748591]
[1745800625168,6.06,1780.6,1780.2,6.4953265]
[1745800625373,6.06,1781.0,1780.3,2.17853265]
[1745800625545,6.06,1781.0,1780.4,3.0]
[1745800626470,6.06,1781.0,1780.5,3.0]
[1745800626647,6.06,1781.0,1780.6,1.5769]
[1745800627438,6.06,1781.0,1780.4,1.5769]
[1745800627847,6.06,1781.0,1780.4,4.72543235]
[1745800628049,6.06,1781.0,1780.6,1.5769]
[1745800628665,6.06,1781.0,1780.7,0.23381209]
[1745800628873,6.06,1781.4,1780.7,0.23506188]
[1745800629582,6.06,1781.4,1780.8,3.0]
[1745800629765,6.06,1781.4,1781.0,1.5163]
[1745800630083,6.06,1781.4,1781.1,0.00099756]
[1745800630376,6.06,1781.6,1781.1,3.00099756]
[1745800630746,6.06,1781.6,1781.1,8.61548195]
[1745800630979,6.06,1781.6,1781.1,3.00099756]
[1745800631778,6.06,1781.7,1781.2,3.0]
[1745800631963,6.06,1781.7,1781.3,0.00087148]
[1745800632166,6.06,1781.9,1781.4,1.6025]
[1745800632393,6.06,1781.9,1781.4,10.21592684]
[1745800632677,6.06,1781.9,1781.6,3.0]
[1745800633079,6.06,1782.0,1781.7,1.6025]
[1745800633254,6.06,1782.0,1781.7,7.21510627]
[1745800633576,6.06,1782.0,1781.7,4.6025]
[1745800634137,6.06,1782.0,1781.7,10.21506401]
[1745800634344,6.06,1782.0,1781.7,4.6025]
[1745800635165,6.06,1782.0,1781.7,15.82736175]
[1745800635369,6.06,1782.0,1781.7,4.6025]
[1745800636485,6.06,1782.0,1781.7,10.21510877]
[1745800637349,6.06,1782.0,1781.7,4.6025]
[1745800638276,6.06,1782.6,1781.7,4.6025]
[1745800638782,3.14853235,1782.5,1781.7,4.6025]
[1745800639282,3.14853235,1782.3,1781.5,7.6937]
[1745800640080,3.0,1782.4,1781.5,7.6937]
[1745800641285,3.42271012,1782.4,1781.5,7.6937]
[1745800642083,3.0,1782.4,1781.5,7.6937]
[1745800643732,6.061,1782.5,1781.7,1.6299]
[1745800643884,12.121,1782.6,1781.7,7.24238527]
[1745800644079,6.06,1782.5,1781.8,0.21834604]
[1745800644411,6.06,1782.5,1781.9,1.5297]
[1745800644611,6.06,1782.5,1782.0,0.21534686]
[1745800652329,0.63667711,1782.2,1781.7,1.6133]
[1745800652532,6.06,1782.1,1781.7,1.6133]
[1745800652699,6.06,1782.1,1781.8,0.21346361]
[1745800654305,6.06,1782.1,1781.5,7.6683]
[1745800654808,6.06,1782.1,1781.6,0.19711343]
[1745800655333,0.63667711,1781.8,1781.6,0.19711343]
[1745800655503,6.06,1781.7,1781.6,0.19711343]
[1745800655683,6.06,1781.7,1781.3,1.6083]
[1745800655888,6.06,1781.7,1781.6,0.16395705]
[1745800656088,6.06,1781.7,1781.4,0.00080845]
[1745800656285,6.06,1781.7,1781.3,1.6083]
[1745800656510,6.06,1781.7,1781.5,0.16389404]
[1745800656713,6.06,1781.7,1781.4,0.16383102]
[1745800656898,6.69667711,1781.7,1781.6,0.16395705]
[1745800657102,6.69667711,1781.7,1781.5,0.16389404]
[1745800657322,6.69667711,1781.7,1781.6,0.16395705]
[1745800657528,6.06,1781.7,1781.6,0.16395705]
[1745800657724,6.06,1781.7,1781.1,1.6032]
[1745800657725,6.36970159,1781.7,1781.1,1.6032]
[1745800658030,6.06,1781.6,1781.2,0.16708593]
[1745800660412,0.63667711,1781.5,1781.2,0.16708593]
[1745800660603,0.63667711,1781.5,1780.9,1.5416]
[1745800660604,0.94659921,1781.5,1780.9,1.5416]
[1745800660806,0.94659921,1781.5,1781.0,0.16682977]
[1745800661833,0.63667711,1781.3,1781.0,0.16682977]
[1745800661996,6.06,1781.2,1780.7,3.0]
[1745800662199,6.06,1781.2,1780.8,0.16670365]
[1745800663337,6.06,1781.2,1780.9,1.6357]
[1745800663836,6.06,1781.2,1781.0,0.16897636]
[1745800664320,6.06,1781.3,1781.0,0.16897636]
[1745800664520,6.06,1781.3,1781.1,1.6357]
[1745800664825,6.06,1781.3,1781.2,0.16884222]
[1745800665447,6.06,1781.3,1781.2,0.9107438]
[1745800665735,6.06,1781.3,1781.2,0.16884222]
[1745800667614,6.06,1781.8,1781.2,0.16884222]
[1745800669515,6.06,1781.8,1781.2,3.16884222]
[1745800670607,6.06,1781.8,1781.2,0.16884222]
[1745800670916,0.63667711,1781.7,1781.2,0.16884222]
[1745800671243,0.9461773,1781.7,1781.2,0.16884222]
[1745800673545,6.06,1781.6,1781.2,0.16884222]
[1745800679338,6.06,1781.7,1781.2,0.16884222]
[1745800679844,0.31018009,1781.6,1781.2,0.16884222]
[1745800680512,6.06,1781.7,1781.3,1.6568]
[1745800680952,6.06,1781.7,1781.4,0.17156857]
[1745800681823,6.69667711,1781.7,1781.3,1.6568]
[1745800682230,6.69667711,1781.7,1781.4,0.17179167]
[1745800682430,0.31066127,1781.6,1781.4,0.17098322]
[1745800683254,0.31066127,1781.5,1781.1,1.6079]
[1745800683448,0.31066127,1781.5,1781.2,0.17192174]
[1745800684722,0.31066127,1781.4,1781.2,0.17192174]
[1745800684925,6.06,1781.3,1781.2,0.17192174]
[1745800694078,6.06,1781.7,1781.2,0.17192174]
[1745800695296,0.31124119,1781.6,1781.2,0.17192174]
[1745800695967,0.31124119,1781.5,1781.2,0.17192174]
[1745800696903,0.31124119,1781.4,1781.2,0.17192174]
[1745800697805,6.06,1781.7,1781.2,0.17192174]
[1745800698774,0.3113677,1781.6,1781.2,0.17192174]
[1745800699803,0.3113677,1781.5,1781.2,0.17192174]
[1745800700122,6.3713677,1781.5,1781.2,0.17192174]
[1745800700539,0.3113677,1781.4,1781.2,0.17192174]
[1745800701422,0.3113677,1781.3,1781.2,0.17192174]
[1745800701932,6.3713677,1781.3,1781.2,0.17192174]
[1745800708537,6.06,1781.3,1781.2,0.17192174]
[1745800710249,6.37148962,1781.3,1781.2,0.17192174]
[1745800711052,7.00816673,1781.3,1781.2,0.17192174]
[1745800712810,26.81617073,1781.3,1781.2,0.17192174]
[1745800713014,31.71998373,1781.3,1780.8,3.7476986]
[1745800713253,0.63667711,1781.1,1780.9,0.15863738]
[1745800713631,0.31148962,1781.0,1780.9,0.15863738]
[1745800715469,0.31148962,1781.1,1780.9,0.15863738]
[1745800716550,0.31148962,1781.0,1780.9,0.15863738]
[1745800717081,0.31148962,1781.1,1780.9,0.15863738]
[1745800717557,6.06,1781.0,1780.9,0.15863738]
[1745800717717,6.37148962,1781.0,1780.9,0.15863738]
[1745800720646,5.90136262,1780.9,1780.4,3.7476986]
[1745800720865,6.84952935,1780.8,1780.5,0.13792579]
[1745800721070,5.90136262,1780.7,1780.5,0.13792579]
[1745800721269,0.63667711,1780.6,1780.5,0.13792579]
[1745800721471,1.06667861,1780.6,1780.2,3.7476986]
[1745800721666,1.06667861,1780.6,1780.3,0.13799079]
[1745800721847,0.31148962,1780.5,1780.3,0.13799079]
[1745800722059,5.90136262,1780.4,1780.3,0.13799079]
[1745800722376,26.14057773,1780.4,1780.3,0.13799079]
[1745800722790,17.35974073,1780.4,1780.3,0.13799079]
[1745800722952,16.48051835,1780.4,1780.3,0.13799079]
[1745800723160,6.84952935,1780.4,1780.3,0.13799079]
[1745800723690,24.08962235,1780.4,1780.3,0.13799079]
[1745800723859,6.84952935,1780.4,1780.3,0.13799079]
[1745800724061,37.42020935,1780.4,1780.2,3.7476986]
[1745800724261,11.92536262,1780.3,1780.2,3.7476986]
[1745800725119,12.23685224,1780.3,1779.7,1.0611]
[1745800725254,0.63667711,1780.2,1779.7,1.0611]
[1745800726884,11.92536262,1780.3,1779.7,1.0611]
[1745800728290,11.92536262,1780.3,1779.8,0.14140482]
[1745800730589,0.63667711,1780.2,1779.8,0.14140482]